Cogmind - Beta 13 @@@ ROGUE MODE // 2024.04.17 @ 12:48:17 Player: Nebula avali Result: Destroyed by S-10 Pest with Light Assault Rifle Performance ------------- Evolutions (2) 1000 Regions Visited (6) 1200 Robots Destroyed (16) 80 Value Destroyed (768) 768 Prototype IDs (1) 20 Alien Tech Used (0) 0 Bonus (856) 856 TOTAL SCORE: 3924 Bonus ------- Pacifist 200 High Alert Combat Kills 44 Follower Combat Kills 105 Entered Garrisons 200 Used RIF Installer 500 Friendly Fire -193 Cogmind --------- Core Integrity 0/550 Matter 233/300 Energy 300/300 System Corruption 0% Temperature Cool (0) Movement Walking (120) Location -8/Storage Parts ------- > --- POWER (1) -------- Enhanced Nuclear Core > --- PROPULSION (2) --- Improved Carbon-fiber Leg Improved Carbon-fiber Leg > --- UTILITY (4) ------ Layered Light Armor Plating Layered Light Armor Plating Layered Light Armor Plating Layered Light Armor Plating > --- WEAPON (4) ------- (None) > --- INVENTORY (5) ---- Ion Engine Light Treads Light Treads Carbon-fiber Leg Small Storage Unit Peak State ------------ > --- POWER ------------ Enhanced Nuclear Core > --- PROPULSION ------- Improved Carbon-fiber Leg Improved Carbon-fiber Leg > --- UTILITY ---------- Layered Light Armor Plating Layered Light Armor Plating Layered Light Armor Plating Layered Light Armor Plating > --- WEAPON ----------- (None) > --- INVENTORY -------- Ion Engine Light Treads Light Treads Carbon-fiber Leg Small Storage Unit [Rating: 29] Favorites ----------- Power Ion Engine Engine Ion Engine Power Core Light Nuclear Core Propulsion Armored Wheel Leg Improved Carbon-fiber Leg Wheel Armored Wheel Utility Small Storage Unit Device Thermal Generator Storage Small Storage Unit Protection Layered Light Armor Plating Weapon Maul Energy Gun Particle Gun Ballistic Gun Assault Rifle Launcher Rocket Launcher Impact Weapon Maul Build | -11 -10 -9 -8 -8 -8 -8 ------- Run | Yrd Mat Mat Mat Gar Mat Sto Slots Evolved 4 | . . 2 2 . . . Power . | . . . . . . . Propulsion . | . . . . . . . Utility 2 | . . . 2 . . . Weapon 2 | . . 2 . . . . Parts Attached 32 | . 3 3 6 13 7 . Power 3 | . . . . 2 1 . Engine . | . . . . . . . Core 3 | . . . . 2 1 . Reactor . | . . . . . . . Propulsion 9 | . 2 2 . 3 2 . Treads . | . . . . . . . Leg 4 | . . . . 2 2 . Wheel 5 | . 2 2 . 1 . . Hover . | . . . . . . . Flight . | . . . . . . . Utility 10 | . . 1 2 3 4 . Device 1 | . . . 1 . . . Storage . | . . . . . . . Processor . | . . . . . . . Hackware . | . . . . . . . Protection 9 | . . 1 1 3 4 . Artifact . | . . . . . . . Weapon 10 | . 1 . 4 5 . . Energy Gun 3 | . . . . 3 . . Energy Cannon . | . . . . . . . Ballistic Gun . | . . . . . . . Ballistic Cannon . | . . . . . . . Launcher 5 | . . . 4 1 . . Special Weapon . | . . . . . . . Impact Weapon 2 | . 1 . . 1 . . Slashing Weapon . | . . . . . . . Piercing Weapon . | . . . . . . . Special Melee Weapon . | . . . . . . . Unidentified Prototypes 1 | . . . . . 1 . Parts Lost 20 | . . . . 20 . . Power 3 | . . . . 3 . . Propulsion 4 | . . . . 4 . . Utility 5 | . . . . 5 . . Weapon 8 | . . . . 8 . . Highest Loss Streak 7 | . . . . 7 . . To Critical Strikes . | . . . . . . . Average Slot Usage (%) 57 | . 75 56 76 63 15 63 Engine 4 | . 14 11 9 . . . Core 2 | . . . . 4 2 9 Leg 3 | . 12 . . 2 5 18 Wheel 10 | . 15 21 18 9 . . Device 4 | . . . 5 7 . . Storage 7 | . 14 11 9 8 . . Protection 9 | . . 2 16 10 7 36 Energy Gun 3 | . 6 . . 5 . . Launcher 4 | . . . 14 7 . . Impact Weapon 6 | . 6 11 3 7 . . Naked Turns 124 | . . . . 38 86 . Heaviest Build 39 | 14 14 18 39 39 24 24 Greatest Support 36 | 20 32 32 24 30 36 36 Greatest Overweight (x) 10 | . . . 1 10 2 . Average Overweight (x) . | . . . . 1 . . Largest Inventory Capacity 8 | . 8 8 8 8 5 5 Average Capacity 7 | . 8 8 8 7 5 5 Most Carried 8 | . 8 8 8 7 5 5 Average Carried 5 | . 6 7 6 4 5 5 Final Capacity 8 | 8 8 8 8 5 5 5 Final Carried 8 | 6 7 8 6 5 5 5 Class Distribution -------------------- 85% | Mutant 9% | Scavenger-Gunner 4% | Tank Dominant Class ---------------- Mutant | -10/Materials Mutant | -9/Materials Mutant | -8/Materials Mutant | -8/Garrison Mutant | -8/Materials Mutant | -8/Storage Resources | -11 -10 -9 -8 -8 -8 -8 ----------- Run | Yrd Mat Mat Mat Gar Mat Sto Matter Collected 664 | 179 . 51 64 370 . . Remotely . | . . . . . . . Salvage Created 433 | . . 86 133 214 . . Parts 17 | . . 2 7 8 . . Haulers Intercepted . | . . . . . . . Recyclers Shooed . | . . . . . . . Parts Field Recycled . | . . . . . . . Retrieved Matter . | . . . . . . . Parts Self-Destructed . | . . . . . . . Prevented . | . . . . . . . Kills | -11 -10 -9 -8 -8 -8 -8 ------- Run | Yrd Mat Mat Mat Gar Mat Sto Combat Hostiles Destroyed 12 | . . 2 2 8 . . AOE 9 | . . . 2 7 . . Classes Destroyed 6 | . . 2 3 1 . . Worker 1 | . . . 1 . . . Recycler 1 | . . . 1 . . . Operator 2 | . . . 1 1 . . Grunt 7 | . . 1 2 4 . . Sentry 4 | . . 1 . 3 . . Hunter 1 | . . . . 1 . . Best Kill Streak 4 | . . 1 4 2 . . Combat Bots Only 3 | . . 1 2 3 . . Max Kills in Single Turn 5 | . . 1 5 2 . . Gunslinging . | . . . . . . . Exploded 2 | . . . 2 2 . . Melee . | . . . . . . . Uniques/NPCs Destroyed . | . . . . . . . Combat | -11 -10 -9 -8 -8 -8 -8 -------- Run | Yrd Mat Mat Mat Gar Mat Sto Hostile Shots Fired 194 | . . 10 2 137 43 2 Missed 62 | . . 1 2 41 17 1 Damage Taken 2630 | . . 110 115 1979 417 9 Core 601 | . . 45 . 485 62 9 Absorbed by Shields . | . . . . . . . Redirected to Shielding 51 | . . . 6 45 . . Core Remaining (%) 96 | 100 100 88 . . . . Volleys Fired 14 | . . . 1 13 . . Largest 4 | . . . 4 3 . . Hottest 205 | . . . 132 205 . . Shots Fired 29 | . . . 4 25 . . Gun 3 | . . . . 3 . . Cannon . | . . . . . . . Launcher 26 | . . . 4 22 . . Special . | . . . . . . . Kinetic . | . . . . . . . Thermal 3 | . . . . 3 . . Explosive 26 | . . . 4 22 . . Electromagnetic . | . . . . . . . Robot Hit Streak 8 | . . . 3 8 . . Robot Miss Streak 2 | . . . . 2 . . Penetration Max . | . . . . . . . Secondary Targets . | . . . . . . . Shots Hit Robots 28 | . . 6 3 19 . . Core Hits 30 | . . . 7 23 . . Critical Kills . | . . . . . . . Critical Parts Destroyed 5 | . . 3 . 2 . . Critical Strikes 6 | . . 3 . 3 . . Burn 1 | . . . . 1 . . Smash 5 | . . 3 . 2 . . Melee Attacks 18 | . 1 9 . 8 . . Impact 18 | . 1 9 . 8 . . Slashing . | . . . . . . . Piercing . | . . . . . . . Sneak Attacks . | . . . . . . . Combat Hostiles . | . . . . . . . Follow-up Attacks . | . . . . . . . Damage Inflicted 1911 | . . 209 365 1333 . 4 Guns 53 | . . . . 53 . . Cannons . | . . . . . . . Explosions 1596 | . . . 365 1231 . . Melee 258 | . . 209 . 49 . . Ramming 4 | . . . . . . 4 Kinetic . | . . . . . . . Thermal 53 | . . . . 53 . . Explosive 1596 | . . . 365 1231 . . Electromagnetic . | . . . . . . . Impact 258 | . . 209 . 49 . . Slashing . | . . . . . . . Piercing . | . . . . . . . Highest Corruption . | . . . . . . . Average Corruption . | . . . . . . . Corruption Purged . | . . . . . . . Corruption Blocked . | . . . . . . . Overload Shots . | . . . . . . . Overflow Damage 199 | . . 86 . 113 . . Projectiles . | . . . . . . . Explosions 64 | . . . . 64 . . Melee 135 | . . 86 . 49 . . Knockbacks 1 | . . 1 . . . . Impact 1 | . . 1 . . . . Kinetic . | . . . . . . . Secondary . | . . . . . . . Self-Inflicted Damage 568 | . . . 116 452 . . Shots 13 | . . . 3 10 . . Rammed . | . . . . . . . Targets Rammed 1 | . . . . . . 1 Kicked 1 | . . . . . . 1 Crushed . | . . . . . . . Highest Temperature 141 | . . . 69 141 108 . Average Temperature 42 | . . . 36 29 63 . Received Heat Transfer 1005 | . . 51 . 702 252 . Siege Activations . | . . . . . . . Robots Corrupted . | . . . . . . . Combat Hostiles . | . . . . . . . Parts Fried 4 | . . . . 4 . . Impact Corruptions 6 | . . 4 . 2 . . Robots Melted . | . . . . . . . Combat Hostiles . | . . . . . . . Parts Melted . | . . . . . . . Heat Transferred 185 | . . . . 185 . . Parts Sabotaged . | . . . . . . . Parts Stolen . | . . . . . . . Parts Stripped . | . . . . . . . Power Chain Reactions . | . . . . . . . Alert | -11 -10 -9 -8 -8 -8 -8 ------- Run | Yrd Mat Mat Mat Gar Mat Sto Peak Influence 638 | . 16 94 141 638 306 128 Initial 291 | . . 6 39 91 291 128 Average 297 | . 9 64 87 474 292 128 Maximum Alert Level 2 | . . . . 2 1 . Low Security (%) 40 | . 100 100 100 7 . 100 Level 1 22 | . . . . 19 100 . Level 2 36 | . . . . 73 . . Level 3 . | . . . . . . . Level 4 . | . . . . . . . Level 5 . | . . . . . . . High Security . | . . . . . . . Max Security . | . . . . . . . Squads Dispatched 2 | . 1 . 1 . . . Investigation . | . . . . . . . Extermination . | . . . . . . . Reinforcement 2 | . 1 . 1 . . . Assault . | . . . . . . . Garrison . | . . . . . . . Intercept . | . . . . . . . Searches Triggered . | . . . . . . . Construction Impeded . | . . . . . . . Haulers Reinforced . | . . . . . . . Active Scanning Responses . | . . . . . . . Cargo Convoy Interrupts . | . . . . . . . Stealth | -11 -10 -9 -8 -8 -8 -8 --------- Run | Yrd Mat Mat Mat Gar Mat Sto Distress Signals 1 | . . . . . . 1 Communications Jammed . | . . . . . . . Distress Signals . | . . . . . . . Times Spotted 37 | . 1 4 2 22 3 5 Peak Tracking Total 5 | . 2 1 2 5 3 5 Tactical Retreats 6 | . . . . 6 . . Traps | -11 -10 -9 -8 -8 -8 -8 ------- Run | Yrd Mat Mat Mat Gar Mat Sto Traps Triggered 1 | . . . . 1 . . Indirectly . | . . . . . . . Trap Hack Attempts . | . . . . . . . Triggered . | . . . . . . . Disarmed . | . . . . . . . Reprogrammed . | . . . . . . . Reused . | . . . . . . . Traps Extracted . | . . . . . . . Installed . | . . . . . . . Triggered . | . . . . . . . Machines | -11 -10 -9 -8 -8 -8 -8 ---------- Run | Yrd Mat Mat Mat Gar Mat Sto Machines Disabled 3 | . . . 1 2 . . Max in Single Turn 2 | . . . 1 2 . . Phase Generator 1 | . . . . 1 . . Machines Repaired . | . . . . . . . Machines Dismantled . | . . . . . . . Machines Sabotaged . | . . . . . . . Overloaded Fab Kills . | . . . . . . . Hacking | -11 -10 -9 -8 -8 -8 -8 --------- Run | Yrd Mat Mat Mat Gar Mat Sto Machines Accessed 7 | . . 3 1 3 . . Terminals 6 | . . 3 . 3 . . Fabricators . | . . . . . . . Repair Stations . | . . . . . . . Recycling Units . | . . . . . . . Scanalyzers . | . . . . . . . Garrison Access 1 | . . . 1 . . . Total Hacks 18 | . . 9 1 8 . . Successful 9 | . . 5 1 3 . . Failed 9 | . . 4 . 5 . . Catastrophic 2 | . . . . 2 . . Database Lockouts . | . . . . . . . Manual 12 | . . 9 . 3 . . Terminals 17 | . . 9 . 8 . . Fabricators . | . . . . . . . Repair Stations . | . . . . . . . Recycling Units . | . . . . . . . Scanalyzers . | . . . . . . . Garrison Access 1 | . . . 1 . . . Terminal Hacks 2 | . . . . 2 . . Open Door 1 | . . . . 1 . . Patrol Navigation 1 | . . . . 1 . . Fabricator Hacks . | . . . . . . . Repair Station Hacks . | . . . . . . . Recycling Unit Hacks . | . . . . . . . Scanalyzer . | . . . . . . . Garrison Access Hacks 1 | . . . 1 . . . Unlock Access 1 | . . . 1 . . . Unauthorized Hacks 6 | . . 5 . 1 . . Terminals 6 | . . 5 . 1 . . Assimilate 2 | . . 2 . . . . Botnet 2 | . . 2 . . . . Operators 1 | . . 1 . . . . Override 1 | . . . . 1 . . Fabricators . | . . . . . . . Repair Stations . | . . . . . . . Recycling Units . | . . . . . . . Scanalyzers . | . . . . . . . Garrison Access . | . . . . . . . Data Cores Recovered . | . . . . . . . Used . | . . . . . . . Hacking Detections 5 | . . 3 . 2 . . Full Trace Events 2 | . . . . 2 . . Feedback Events . | . . . . . . . Feedback Blocked . | . . . . . . . Robot Schematics Acquired . | . . . . . . . Robots Built . | . . . . . . . Authchips . | . . . . . . . Time . | . . . . . . . Total Robot Build Rating . | . . . . . . . Part Schematics Acquired . | . . . . . . . Parts Built . | . . . . . . . Authchips . | . . . . . . . Time . | . . . . . . . Total Part Build Rating . | . . . . . . . Parts Repaired . | . . . . . . . Time . | . . . . . . . Parts Recycled . | . . . . . . . Recycled Matter . | . . . . . . . Retrieved Matter . | . . . . . . . Retrieved Components . | . . . . . . . Parts Scanalyzed . | . . . . . . . Part Schematics Acquired . | . . . . . . . Parts Damaged . | . . . . . . . Bothacking | -11 -10 -9 -8 -8 -8 -8 ------------ Run | Yrd Mat Mat Mat Gar Mat Sto Used RIF Installer 1 | . . . . 1 . . Robots Hacked . | . . . . . . . Non-combat . | . . . . . . . Combat . | . . . . . . . Robot Hacks Applied . | . . . . . . . Relay Couplers Released . | . . . . . . . Fabnet Peak Effective % . | . . . . . . . Robots Rewired 2 | . . . . 2 . . Allies Hacked . | . . . . . . . Hacks Repelled . | . . . . . . . Allies | -11 -10 -9 -8 -8 -8 -8 -------- Run | Yrd Mat Mat Mat Gar Mat Sto Total Allies 4 | . . 2 . 2 . . Largest Group 2 | . . 2 2 2 . . Highest-Rated Group 56 | . . 20 20 56 . . Highest-Rated Ally 31 | . . 10 10 31 . . Total Orders . | . . . . . . . Ally Attacks 18 | . . . . 18 . . Total Damage 364 | . . . . 364 . . Kills 3 | . . . . 3 . . Allies Corrupted . | . . . . . . . Allies Melted . | . . . . . . . Intel | -11 -10 -9 -8 -8 -8 -8 ------- Run | Yrd Mat Mat Mat Gar Mat Sto Robot Analysis Total . | . . . . . . . Derelict Logs Recovered . | . . . . . . . Drone Launches . | . . . . . . . Drone Recoveries . | . . . . . . . Exploration | -11 -10 -9 -8 -8 -8 -8 ------------- Run | Yrd Mat Mat Mat Gar Mat Sto Turns Passed 999 | . 98 189 47 502 127 36 Spaces Moved 713 | 1 77 150 34 353 69 29 Core 119 | . . . . 76 43 . Treads . | . . . . . . . Legs 145 | 1 36 . . 53 26 29 Wheels 449 | . 41 150 34 224 . . Hover . | . . . . . . . Flight . | . . . . . . . Fastest Speed 50 | 120 100 90 90 50 50 120 Average Speed 103 | 120 109 98 94 108 77 120 Slowest Speed 550 | 120 120 100 105 550 150 120 Overloaded Moves . | . . . . . . . Propulsion Burnouts . | . . . . . . . Robots Hopped . | . . . . . . . Cave-ins Triggered . | . . . . . . . Exploration Rate (%) 15 | 2 17 21 8 40 8 13 Regions Visited 6 Branch Regions 1 Pre-discovered Areas . | . . . . . . . Known Exits Taken 1 | . . . 1 . . . Unknown Exits Taken 4 | 1 1 1 . . 1 . Scrap Searched . | . . . . . . . Spaces Dug 11 | . 1 3 . 7 . . Terrain Destroyed 216 | . 1 3 14 198 . . Melee 5 | . 1 3 . 1 . . Projectile . | . . . . . . . AOE 211 | . . . 14 197 . . Terrain Rammed . | . . . . . . . Walls Destroyed . | . . . . . . . Machines Disabled . | . . . . . . . Actions | -11 -10 -9 -8 -8 -8 -8 --------- Run | Yrd Mat Mat Mat Gar Mat Sto Total 910 | . 92 173 46 430 139 30 Wait 83 | . . 9 3 7 64 . Move 706 | . 76 149 33 351 68 29 Hop . | . . . . . . . Pick Up 10 | . 5 1 2 2 . . Fast Attach 15 | . . 2 1 5 7 . Attach 15 | . 3 . 5 7 . . Detach 6 | . 2 . 1 3 . . Swap 2 | . . 1 . 1 . . Drop 7 | . 5 2 . . . . Fire 14 | . . . 1 13 . . Melee 18 | . 1 9 . 8 . . Ram . | . . . . . . . Kick 1 | . . . . . . 1 Crush . | . . . . . . . Escape Stasis 8 | . . . . 8 . . Rewire 25 | . . . . 25 . . Trap . | . . . . . . . Miscellaneous . | . . . . . . . Route ------- -11/Scrapyard -10/Materials -9/Materials -8/Materials -8/Garrison (discovered 3 exits: *Mat x3) -8/Materials -8/Storage History --------- Turn | Location | Event 1 | -11/Scrapyard | Discovered new exit (range 0) 1 | -11/Scrapyard | Entered Materials 97 | -10/Materials | Discovered new exit (range 3) 99 | -10/Materials | Entered another Materials area 99 | -9/Materials | Evolved 2 slots: Weapon x2 250 | -9/Materials | Discovered new exit (range 16) 288 | -9/Materials | Entered another Materials area 288 | -8/Materials | Accompanied by 2 allies 288 | -8/Materials | Evolved 2 slots: Utility x2 332 | -8/Materials | Identified exit to Garrison 335 | -8/Materials | Entered Garrison 335 | -8/Garrison | Accompanied by 1 ally 363 | -8/Garrison | Phase Generator disabled 371 | -8/Garrison | Identified exit to Materials 393 | -8/Garrison | Triggered checkpoint 421 | -8/Garrison | Lost 4 parts (1p1u2w) 661 | -8/Garrison | Core integrity fell below 50% 670 | -8/Garrison | Build established: Mutant 688 | -8/Garrison | Lost 5 parts (1p1n3u) 786 | -8/Garrison | Installed Relay Interface Framework 791 | -8/Garrison | Core integrity fell below 20% 829 | -8/Garrison | Lost 7 parts (1p1n1u4w) 837 | -8/Garrison | Entered Materials 948 | -8/Materials | Discovered new exit (range 15) 964 | -8/Materials | Entered Storage 1000 | -8/Storage | Destroyed by S-10 Pest with Light Assault Rifle Last Messages --------------- 00788_ Particle Gun destroyed. 00798_ Lgt. Nuclear Core destroyed. 00835_ Attempting to access garrison exit controls... 00835_ Remote lockdown engaged. Remote lockdown override. LOCATION=MATERIALS GOAL=ESCAPE Referencing patrol navigation protocols. 00923_ Acquired Prototype Power Core. 00923_ Identified Enh. Nuclear Core. 00925_ Acquired Imp. Carbon-fiber Leg. 00932_ Acquired Lyr. Light Armor Plating. 00940_ Critical hit (Burn: +37). 00948_ EXIT=FOUND 00954_ Critical hit (Burn: +37). LOCATION=UNKNOWN GOAL=ESCAPE 00993_ Kicked R-06 Scavenger. 00997_ W-25 Informer sends out distress signal. 00999_ S-10 Pest destroyed. Map ----- +----------------------------------------------------+ | ?????????????????????????????????????????????????? | | ?????????????????????????????????????????????????? | | ?????????????????????????????????????????????????? | | ?????????????????????????????????????????????????? | | ?????????????????????????????????????????????????? | | ?????????????????????????????????????????????????? | | ?????????????????????????????????????????????????? | | ?????????????????????????????????????????????????? | | ?????????????????????????????????????????????????? | | ?????????????????????????????????????????????????? | | ?????????????????????????????????????????????????? | | ?????????????????????????????????????????????????? | | ?????????????????????????????????????????????????? | | ?????????????????????????????????????????????????? | | ?????????????????????????????????????????????????? | | ??+##+??###+########?????????????????????????????? | | ?? # ! ??????????????????????????????? | | ?""" """ # ??????????????????????????????? | | """ """ #? ???????????#???????????????????? | | """ """ #? ! ?????????? #???????????????????? | | #?? ??????????? #???????????????????? | | #?? ?????????? #???????????????????? | | "Y" ???? !??????????? #???????????????????? | | ??"" ???? ??????????s #???????????????????? | | ####+##+######+###########s #???????????????????? | | a *w@ #???????????????????? | | s[ #???????????????????? | | #???????????????????? | | ####+##########+##############???????????????????? | | ?? ??????????????????????????????????????????? | | """ """ ????????????????????????????????????????? | | """ """ ??????????????????????????????????????? | | """ """ #?????????????????????????????????????? | | #?????????????????????????????????????? | | #########?##?????????????????????????????????????? | | | | | | | | | | | | | | | | | | | | | | | | | | | | | | | +----------------------------------------------------+ Best States ------------- Heat Dissipation 31 Energy Generation 17 Energy Capacity 300 Matter Stores 300 Matter Capacity 300 Sight Range 16 Terrain Scan Density 10 Armor Coverage 600 Weapon Shielding 33 Evasion (%) 55 Item Schematics ----------------- None Robot Schematics ------------------ None Fabricated ------------ Nothing Alien Tech Used ----------------- None Achievements -------------- None Challenges ------------ None Game ------ Seed frogmind Manual? 1 Play Time 00:13:24 Cumulative 42.6 hours Start 2024.04.17 @ 12:33:40 End 2024.04.17 @ 12:48:17 Sessions 1 Manual Loads 0 Difficulty Rogue Special Mode None Game No. 75 Rogue 74 Adventurer 1 Explorer 0 Win Type - Total 2 Types 2/0/0/0/0/0/0/0/0 Lore% 26 Gallery% 48 Achievement% 39 Wizard Run 0 Options --------- Layout 0 ASCII 0 Keyboard 0 Movement Numpad Keybinds 0 Fullscreen 1 Font 18/SmallcapsGlow Map View 76x50 Zoom Use 0% Tactical HUD 1 Map Filters NONE Filters NONE Steam 1 RUN: 369f6167-99f6-461c-9252-f6f145b8af3b